bitfinex-derivatives/quotes_ETHF0:USTF0_20230902
["timestamp","ask_amount","ask_price","bid_price","bid_amount"]
[1693621313027,12.92306195,1631.2,1631.1,5.5903]
[1693621313723,6.89943,1631.2,1631.1,15.35716352]
[1693621318029,6.89943,1631.2,1631.1,13.05726352]
[1693621318928,8.35331547,1631.2,1631.1,13.05726352]
[1693621319120,6.89943,1631.2,1631.1,13.05726352]
[1693621321418,8.35331547,1631.2,1631.1,13.05726352]
[1693621325932,8.35331547,1631.2,1631.1,10.1901]
[1693621327237,8.35331547,1631.2,1631.1,13.05726352]
[1693621329038,8.35331547,1631.2,1631.1,10.1901]
[1693621329938,8.35331547,1631.2,1631.1,13.05726352]
[1693621331435,8.35331547,1631.2,1631.1,10.1901]
[1693621332244,8.35331547,1631.2,1631.1,13.05726352]
[1693621333444,8.35331547,1631.2,1631.1,10.1901]
[1693621334351,8.35331547,1631.2,1631.1,13.05726352]
[1693621334848,8.35331547,1631.2,1631.1,10.1901]
[1693621335651,8.35331547,1631.2,1631.1,13.05726352]
[1693621336650,6.89943,1631.2,1631.1,13.05726352]
[1693621336852,8.35331547,1631.2,1631.1,13.05726352]
[1693621340551,8.35331547,1631.2,1631.1,15.93409938]
[1693621340750,10.65312547,1631.2,1631.1,18.8012629]
[1693621340950,9.19924,1631.2,1631.1,16.5013629]
[1693621341350,10.65312547,1631.2,1631.1,13.63419938]
[1693621342156,10.65312547,1631.2,1631.1,18.8012929]
[1693621342356,9.19924,1631.2,1631.1,21.1012229]
[1693621342960,10.65312547,1631.2,1631.1,21.1012229]
[1693621344356,6.89943,1631.2,1631.1,23.4011529]
[1693621350364,6.89943,1631.2,1631.1,15.35725352]
[1693621350867,8.35331547,1631.2,1631.1,15.35725352]
[1693621351565,6.89943,1631.2,1631.1,15.35725352]
[1693621354165,8.35331547,1631.2,1631.1,13.05732352]
[1693621355368,8.35331547,1631.2,1631.1,15.35726352]
[1693621355667,6.89943,1631.2,1631.1,15.35726352]
[1693621357170,8.35331547,1631.2,1631.1,15.35726352]
[1693621358070,8.35331547,1631.2,1631.1,10.19016]
[1693621358675,8.35331547,1631.2,1631.1,13.05732352]
[1693621359369,8.35331547,1631.2,1631.1,10.19016]
[1693621360570,8.35331547,1631.2,1631.1,13.05732352]
[1693621367486,6.89943,1631.2,1631.1,13.05732352]
[1693621367982,8.35331547,1631.2,1631.1,13.05732352]
[1693621369086,6.7382414,1631.2,1631.1,13.05732352]
[1693621369887,8.19212687,1631.2,1631.1,13.05732352]
[1693621370588,6.7382414,1631.2,1631.1,13.05732352]
[1693621371688,8.19212687,1631.2,1631.1,13.05732352]
[1693621371889,8.19212687,1631.2,1631.1,10.19016]
[1693621373089,8.19212687,1631.2,1631.1,13.05732352]
[1693621373388,6.7382414,1631.2,1631.1,13.05732352]
[1693621373788,6.7382414,1631.2,1631.1,21.10251299]
[1693621374891,6.7382414,1631.2,1631.1,21.10260184]
[1693621375185,6.7382414,1631.2,1631.1,18.80267184]
[1693621375384,6.7382414,1631.2,1631.1,10.75739352]
[1693621376090,6.7382414,1631.2,1631.1,13.05734352]
[1693621376389,9.0380514,1631.2,1631.1,10.75739352]
[1693621377082,9.0380514,1631.2,1631.1,13.05734352]
[1693621377491,9.0380514,1631.2,1631.1,21.10303835]
[1693621378589,9.0380514,1631.2,1631.1,13.05734352]
[1693621378782,9.0380514,1631.2,1631.1,10.75739352]
[1693621379191,9.0380514,1631.2,1631.1,10.75738352]
[1693621380090,10.49193687,1631.2,1631.1,10.75738352]
[1693621380391,10.49193687,1631.2,1631.1,15.9361403]
[1693621380990,10.49193687,1631.2,1631.1,7.89022]
[1693621381885,10.49193687,1631.2,1631.1,10.75738352]
[1693621382082,10.49193687,1631.2,1631.1,13.05734352]
[1693621382395,10.49193687,1631.2,1631.1,10.75737352]
[1693621383385,9.0380514,1631.2,1631.1,10.75738352]
[1693621383689,9.0380514,1631.2,1631.1,13.05732352]
[1693621383889,10.49193687,1631.2,1631.1,10.75738352]
[1693621385387,10.49193687,1631.2,1631.1,10.75737352]
[1693621386394,10.49193687,1631.2,1631.1,10.75738352]
[1693621388994,10.49193687,1631.2,1631.1,18.80343332]
[1693621390700,10.49193687,1631.2,1631.1,10.75738352]
[1693621390902,10.49193687,1631.2,1631.1,18.80271333]
[1693621391099,9.0380514,1631.2,1631.1,21.10266333]
[1693621391301,9.0380514,1631.2,1631.1,18.80271333]
[1693621393204,9.0380514,1631.2,1631.1,18.80273333]
[1693621394394,9.0380514,1631.2,1631.1,18.80271333]
[1693621396097,9.0380514,1631.2,1631.1,13.05732352]
[1693621397103,9.0380514,1631.2,1631.1,10.75738352]
[1693621400108,9.0380514,1631.2,1631.1,13.05733352]
[1693621400309,9.0380514,1631.2,1631.1,10.75738352]
[1693621401116,9.0380514,1631.2,1631.1,13.05733352]
[1693621403115,6.7382414,1631.2,1631.1,13.05733352]
[1693621404216,6.7382414,1631.2,1631.1,21.10266333]
[1693621406117,6.7382414,1631.2,1631.1,18.80271333]
[1693621406918,6.7382414,1631.2,1631.1,21.10266333]
[1693621410422,9.0380514,1631.2,1631.1,21.10266333]
[1693621410921,9.0380514,1631.2,1631.1,13.05733352]
[1693621412621,10.49193687,1631.2,1631.1,13.05733352]
[1693621413019,9.0380514,1631.2,1631.1,13.05733352]
[1693621413221,9.0380514,1631.2,1631.1,21.10266333]
[1693621414125,6.7382414,1631.2,1631.1,21.10266333]
[1693621417930,8.19212687,1631.2,1631.1,21.10266333]
[1693621418729,6.7382414,1631.2,1631.1,21.10266333]
[1693621419128,6.7382414,1631.2,1631.1,13.05733352]
[1693621419834,8.19212687,1631.2,1631.1,13.05733352]
[1693621420137,6.7382414,1631.2,1631.1,13.05733352]
[1693621426538,6.7382414,1631.2,1631.1,21.10266333]
[1693621441351,6.7382414,1631.2,1631.1,13.05733352]
[1693621442346,8.19212687,1631.2,1631.1,13.05733352]
[1693621442647,10.49193687,1631.2,1631.1,5.529]
[1693621446459,10.49193687,1631.2,1631.0,8.48112756]
[1693621447059,2.26993648,1631.1,1631.0,8.48112756]
[1693621447252,11.46969648,1631.1,1631.0,8.48112756]
[1693621459664,11.46969648,1631.1,1631.0,10.86102756]
[1693621463567,11.46969648,1631.1,1631.0,10.92232756]
[1693621466773,11.46969648,1631.1,1631.0,13.78949108]
[1693621469774,11.56969648,1631.1,1631.0,13.78949108]
[1693621470074,11.56969648,1631.1,1631.0,10.92232756]
[1693621470469,11.56969648,1631.1,1631.0,13.78949108]
[1693621472374,11.56969648,1631.1,1631.0,10.92232756]
[1693621474378,11.56969648,1631.1,1631.0,13.78949108]
[1693621474978,11.56969648,1631.1,1631.0,10.92232756]
[1693621476174,11.56969648,1631.1,1631.0,13.78949108]
[1693621476374,11.56969648,1631.1,1631.0,10.92232756]
[1693621477481,11.56969648,1631.1,1631.0,13.78949108]
[1693621477878,6.99982,1631.1,1631.0,20.68958108]
[1693621478084,0.1,1631.1,1631.0,22.98961108]
[1693621478280,0.1,1631.1,1631.0,31.03004804]
[1693621478788,0.1,1631.1,1631.0,22.98961108]
[1693621481185,2.39989,1631.1,1631.0,22.98961108]
[1693621482987,0.1,1631.1,1631.0,22.98961108]
[1693621484886,2.39989,1631.1,1631.0,22.98961108]
[1693621485375,0.1,1631.1,1631.0,22.98961108]
[1693621487785,4.59908,1631.4,1631.3,6.96013]
[1693621488088,4.59908,1631.4,1631.3,17.65590352]
[1693621488286,4.59908,1631.4,1631.3,24.30154044]
[1693621488781,2.29952,1631.4,1631.3,24.30154044]
[1693621489083,4.59883,1631.5,1631.4,9.2592]
[1693621489290,4.59883,1631.5,1631.4,14.7882]
[1693621491892,6.89826,1631.5,1631.4,14.7882]
[1693621497905,6.89826,1631.5,1631.4,15.29111937]
[1693621500202,6.89826,1631.5,1631.4,12.99162937]
[1693621509213,8.35214547,1631.5,1631.4,12.99162937]
[1693621509714,6.89826,1631.5,1631.4,12.99162937]
[1693621514616,8.35214547,1631.5,1631.4,12.99162937]
[1693621515915,6.89826,1631.5,1631.4,12.99162937]
[1693621525025,8.35214547,1631.5,1631.4,12.99162937]
[1693621525925,6.89826,1631.5,1631.4,12.99162937]
[1693621528413,6.13086,1631.5,1631.4,12.99162937]
[1693621528614,4.81143,1631.8,1631.6,0.0613]
[1693621528615,2.29912,1631.7,1631.6,0.0613]
[1693621528820,2.29912,1631.7,1631.6,19.8904813]
[1693621529122,2.29912,1631.7,1631.6,19.9517813]
[1693621529629,6.89709,1631.8,1631.7,5.529]
[1693621529821,6.89709,1631.8,1631.7,17.95521]
[1693621530126,8.35097547,1631.8,1631.7,20.39881]
[1693621530323,6.89709,1631.8,1631.7,20.39881]
[1693621532431,6.89709,1631.8,1631.7,23.00221]
[1693621539838,8.35097547,1631.8,1631.7,23.00221]
[1693621540233,6.89709,1631.8,1631.7,23.06351]
[1693621540534,4.59802,1631.8,1631.7,25.36259]
[1693621542841,4.59802,1631.8,1631.7,25.85530825]
[1693621546342,4.59802,1631.8,1631.7,33.07705374]
[1693621546843,2.29882,1631.9,1631.7,33.07705374]
[1693621546844,4.59767,1631.9,1631.7,33.07705374]
[1693621547143,4.59767,1631.9,1631.8,26.61820593]
[1693621548041,4.59767,1631.9,1631.8,19.39646044]
[1693621548341,6.89582,1632.1,1632.0,6.95728]
[1693621548541,6.89582,1632.1,1632.0,12.48628]
[1693621548947,6.89582,1632.1,1632.0,17.15798044]
[1693621556151,10.64834547,1632.1,1632.0,7.82766]
[1693621556449,10.64834547,1632.1,1632.0,10.12632]
[1693621557046,10.64834547,1632.1,1632.0,12.42498]
[1693621557248,10.64834547,1632.1,1632.0,15.29214352]
[1693621557649,8.34970547,1632.1,1632.0,15.29214352]
[1693621559849,6.89582,1632.1,1632.0,15.29214352]
[1693621560154,8.34970547,1632.1,1632.0,15.29214352]
[1693621561654,6.89582,1632.1,1632.0,15.29214352]
[1693621562253,8.34970547,1632.1,1632.0,12.42498]
[1693621562552,8.34970547,1632.1,1632.0,15.29214352]
[1693621563053,6.89582,1632.1,1632.0,15.29214352]
[1693621563453,8.34970547,1632.1,1632.0,15.29214352]
[1693621564343,6.89582,1632.1,1632.0,15.29214352]
[1693621565148,8.34970547,1632.1,1632.0,15.29214352]
[1693621566847,6.89582,1632.1,1632.0,15.29214352]
[1693621567248,8.34970547,1632.1,1632.0,15.29214352]
[1693621574651,8.34970547,1632.1,1632.0,15.35344352]
[1693621585775,8.34970547,1632.1,1632.0,22.57518901]
[1693621587273,8.34970547,1632.1,1632.0,19.70802549]
[1693621587669,10.64834547,1632.1,1632.0,12.75074549]
[1693621588075,10.64834547,1632.1,1632.0,5.529]
[1693621591979,10.64834547,1632.1,1631.9,7.9545]
[1693621592475,2.26993648,1632.0,1631.9,7.9545]
[1693621592775,11.46457648,1632.0,1631.9,7.9545]
[1693621595482,11.46457648,1632.0,1631.9,10.82166352]
[1693621596083,11.46457648,1632.0,1631.9,7.9545]
[1693621598285,11.46457648,1632.0,1631.9,10.82166352]
[1693621598883,11.46457648,1632.0,1631.9,7.9545]
[1693621602786,11.46457648,1632.0,1631.9,10.82166352]
[1693621603685,11.46457648,1632.0,1631.9,5.29266352]
[1693621604278,4.59732,1632.0,1631.9,17.77936352]
[1693621604478,4.59732,1632.0,1631.9,20.22766352]
[1693621604684,6.89598,1632.0,1631.9,20.22766352]
[1693621604881,4.59732,1632.0,1631.9,20.22766352]
[1693621606083,4.59721,1632.1,1632.0,0.0613]
[1693621606283,4.59721,1632.1,1632.0,14.29081692]
[1693621606489,6.89547,1632.2,1632.1,0.0613]
[1693621606687,6.89547,1632.2,1632.1,15.35302352]
[1693621606981,6.89547,1632.2,1632.1,20.32312352]
[1693621607983,2.29815,1632.4,1632.3,0.0613]
[1693621608186,4.59628,1632.4,1632.3,17.15672044]
[1693621608378,4.59628,1632.4,1632.3,22.12682044]
[1693621609483,2.29813,1632.4,1632.3,24.42506044]
[1693621609887,4.59623,1632.4,1632.3,24.42506044]
[1693621610987,6.89433,1632.4,1632.3,22.12682044]
[1693621611291,8.34818547,1632.4,1632.3,16.96141692]
[1693621611489,8.34818547,1632.4,1632.3,19.25965692]
[1693621611692,8.34818547,1632.4,1632.3,22.12682044]
[1693621611992,6.8943,1632.4,1632.3,22.12682044]
[1693621614184,4.5962,1632.4,1632.3,22.12682044]
[1693621621199,8.34818547,1632.4,1632.3,22.12682044]
[1693621621805,6.8943,1632.4,1632.3,22.12682044]
[1693621622798,8.34818547,1632.4,1632.3,19.25965692]
[1693621623604,8.34818547,1632.4,1632.3,16.96141692]
[1693621623794,8.34818547,1632.4,1632.3,19.82858044]
[1693621624302,6.8943,1632.4,1632.3,19.82858044]
[1693621625405,8.34818547,1632.4,1632.3,19.82858044]
[1693621625902,6.8943,1632.4,1632.3,19.82858044]
[1693621626103,6.8943,1632.4,1632.3,22.12682044]
[1693621631005,6.8943,1632.4,1632.3,19.82858044]
[1693621632901,8.34818547,1632.4,1632.3,19.82858044]
[1693621633603,6.8943,1632.4,1632.3,19.82858044]
[1693621633807,8.34818547,1632.4,1632.3,19.82858044]
[1693621634106,6.8943,1632.4,1632.3,22.12682044]
[1693621634305,4.5962,1632.4,1632.3,22.12682044]
[1693621635109,6.8943,1632.4,1632.3,22.12682044]
[1693621639508,4.5962,1632.4,1632.3,22.12682044]
[1693621642411,6.8943,1632.4,1632.3,22.12682044]
[1693621645304,4.5962,1632.4,1632.3,22.12682044]
[1693621645706,4.59572,1632.6,1632.4,0.0613]
[1693621645914,4.59572,1632.6,1632.5,12.42288]
[1693621646112,4.59572,1632.6,1632.5,22.13758044]
[1693621651911,2.98901307,1632.8,1632.5,15.24370044]
[1693621652105,2.98901307,1632.8,1632.7,5.529]
[1693621652305,0.50061307,1632.8,1632.7,5.529]
[1693621652505,4.00407285,1633.0,1632.7,8.39616352]
[1693621652705,1.45388547,1632.9,1632.8,5.529]
[1693621654212,3.05775832,1632.9,1632.8,5.529]
[1693621654808,1.45388547,1632.9,1632.8,5.529]
[1693621658716,3.05775832,1632.9,1632.8,5.529]
[1693621659516,1.60387285,1632.9,1632.8,5.529]
[1693621660018,3.05775832,1632.9,1632.8,5.529]
[1693621660818,1.45388547,1632.9,1632.8,5.529]
[1693621661924,1.45388547,1632.9,1632.7,12.74970044]
[1693621662524,2.88172006,1633.0,1632.8,5.529]
[1693621662721,2.88172006,1633.0,1632.9,4.67170044]
[1693621662921,0.48152006,1633.0,1632.9,4.67170044]
[1693621663122,0.34484315,1633.1,1632.9,4.67170044]
[1693621666033,3.2077457,1633.0,1632.9,4.67170044]
[1693621666330,3.51421883,1633.0,1632.9,4.67170044]
[1693621667129,4.9681043,1633.0,1632.9,7.07340044]
[1693621667533,3.51421883,1633.0,1632.9,7.07340044]
[1693621667729,4.9681043,1633.0,1632.9,7.07340044]
[1693621667930,3.51421883,1633.0,1632.9,7.07340044]
[1693621668432,2.71578441,1633.0,1632.9,7.07340044]
[1693621669031,3.51421883,1633.0,1632.9,7.07340044]
[1693621669428,0.30647313,1633.0,1632.9,7.07340044]
[1693621669936,2.71553018,1633.0,1632.9,7.07340044]
[1693621670127,0.30647313,1633.0,1632.9,7.07340044]
[1693621670328,2.71552866,1633.0,1632.9,7.07340044]
[1693621670523,0.30647313,1633.0,1632.9,7.07340044]
[1693621670728,2.71544145,1633.0,1632.9,7.07340044]
[1693621671937,2.71544145,1633.0,1632.9,12.60240044]
[1693621673839,2.77173552,1633.1,1632.9,12.60240044]
[1693621674536,0.50179904,1633.1,1632.9,12.60240044]
[1693621674741,2.5002,1633.2,1632.9,12.60240044]
[1693621675340,2.5002,1633.2,1632.9,15.20600044]
[1693621675556,2.9883768,1633.2,1632.9,15.14480044]
[1693621676240,2.9883768,1633.2,1632.9,15.20600044]
[1693621676440,2.9883768,1633.2,1632.9,15.14480044]
[1693621676639,2.9883768,1633.2,1632.9,15.20600044]
[1693621677044,2.9883768,1633.2,1632.9,15.14480044]
[1693621677344,2.9883768,1633.2,1632.9,15.20600044]
[1693621677540,2.9883768,1633.2,1632.9,15.14480044]
[1693621677742,2.9883768,1633.2,1633.0,5.529]
[1693621677941,2.9883768,1633.2,1633.1,2.86716352]
[1693621678141,4.44226227,1633.2,1633.1,5.41056352]
[1693621678336,1.94206227,1633.2,1633.1,5.41056352]
[1693621681639,0.4881768,1633.2,1633.1,5.41056352]
[1693621681940,32.15819,1633.2,1633.1,7.21510044]
[1693621682140,34.45528,1633.2,1633.1,7.21510044]
[1693621682346,47.9810347,1633.2,1633.1,7.21510044]
[1693621682544,49.43492017,1633.2,1633.1,7.21510044]
[1693621683447,49.43492017,1633.2,1633.1,2.5434]
[1693621689051,59.88503987,1633.2,1633.1,2.5434]
[1693621690048,59.88503987,1633.2,1633.1,2.6046]
[1693621690755,59.88503987,1633.2,1633.1,5.47176352]
[1693621690952,59.88503987,1633.2,1633.1,2.6046]
[1693621693352,49.43492017,1633.2,1633.1,2.6046]
[1693621693557,59.88683995,1633.2,1633.1,2.6046]
[1693621695459,59.88683995,1633.2,1633.1,5.1151]
[1693621696161,49.43492017,1633.2,1633.1,5.1151]
[1693621698159,49.43492017,1633.2,1633.1,7.98226352]
[1693621698763,49.43492017,1633.2,1633.1,5.1151]
[1693621700264,47.9810347,1633.2,1633.1,7.98226352]
[1693621700463,49.43492017,1633.2,1633.1,7.98226352]
[1693621701663,49.43492017,1633.2,1633.1,5.1151]
[1693621703162,53.7575262,1633.2,1633.1,5.1151]
[1693621703360,53.7575262,1633.2,1633.1,7.98226352]
[1693621703560,53.7575262,1633.2,1633.1,5.1151]
[1693621703762,59.88675688,1633.2,1633.1,5.1151]
[1693621703961,29.33333073,1633.2,1633.1,7.98226352]
[1693621704157,15.80757603,1633.2,1633.1,7.98226352]
[1693621704360,17.2614615,1633.2,1633.1,7.98226352]
[1693621704564,17.2614615,1633.2,1633.1,5.1151]
[1693621704862,23.39067572,1633.2,1633.1,5.1151]
[1693621706567,23.39067572,1633.2,1633.1,7.98226352]
[1693621706770,23.39067572,1633.2,1633.1,5.1151]
[1693621707573,23.39067572,1633.2,1633.1,7.98226352]
[1693621707765,23.39067572,1633.2,1633.1,5.1151]
[1693621708465,23.39067572,1633.2,1633.1,7.98226352]
[1693621708660,21.93679025,1633.2,1633.1,13.51126352]
[1693621708860,23.39067572,1633.2,1633.1,13.45006352]
[1693621709164,23.39067572,1633.2,1633.1,13.51126352]
[1693621709360,12.7104909,1633.2,1633.1,13.51126352]
[1693621709562,11.59985275,1633.2,1633.1,13.51126352]
[1693621710769,13.2069095,1633.2,1633.1,13.51126352]
[1693621711372,9.18788,1633.2,1633.1,13.51126352]
[1693621714371,9.18788,1633.2,1633.1,15.80837352]
[1693621718468,10.79493675,1633.2,1633.1,15.80837352]
[1693621720666,6.20099675,1633.2,1633.1,20.40259352]
[1693621720868,2.29697,1633.2,1633.1,20.40259352]
[1693621721073,8.98176482,1633.3,1633.2,5.5902]
[1693621721271,8.98176482,1633.3,1633.2,12.48111]
[1693621721468,2.09100482,1633.3,1633.2,14.28564692]
[1693621721671,0.48394807,1633.3,1633.2,16.58261692]
[1693621721873,4.59366,1633.3,1633.2,16.58261692]
[1693621722976,4.59366,1633.3,1633.2,14.28564692]
[1693621734077,6.04754547,1633.3,1633.2,5.529]
[1693621734277,10.64120547,1633.3,1633.1,8.0724]
[1693621734787,2.26993648,1633.2,1633.1,8.0724]
[1693621734983,11.45781648,1633.2,1633.1,8.0724]
[1693621735288,11.45781648,1633.2,1633.1,5.529]
[1693621741996,11.45781648,1633.2,1633.0,7.9051]
[1693621742290,1.45388547,1633.1,1633.0,7.9051]
[1693621742500,10.64232547,1633.1,1633.0,7.9051]
[1693621745000,6.89133,1633.1,1633.0,15.42798352]
[1693621745201,6.89133,1633.1,1633.0,17.91718352]
[1693621746700,8.34521547,1633.1,1633.0,17.91718352]
[1693621747505,6.89133,1633.1,1633.0,17.91718352]
[1693621754497,8.34521547,1633.1,1633.0,17.91718352]
[1693621754809,6.89133,1633.1,1633.0,17.91718352]
[1693621755107,8.34521547,1633.1,1633.0,17.91718352]
[1693621755313,8.83578682,1633.1,1633.0,17.91718352]
[1693621755903,7.38190135,1633.1,1633.0,17.91718352]
[1693621757709,8.83578682,1633.1,1633.0,17.91718352]
[1693621759312,8.83578682,1633.1,1633.0,15.05002]
[1693621761018,8.83578682,1633.1,1633.0,17.91718352]
[1693621762016,8.83578682,1633.1,1633.0,15.61992352]
[1693621762715,8.83578682,1633.1,1633.0,17.91718352]
[1693621763519,8.34521547,1633.1,1633.0,17.91718352]
[1693621765419,6.89133,1633.1,1633.0,17.91718352]
[1693621769226,8.34521547,1633.1,1633.0,15.05002]
[1693621769526,8.34521547,1633.1,1633.0,12.75276]
[1693621771530,8.34521547,1633.1,1633.0,17.91718352]
[1693621772627,6.89133,1633.1,1633.0,17.91718352]
[1693621773835,8.34521547,1633.1,1633.0,17.91718352]
[1693621774336,6.89133,1633.1,1633.0,17.91718352]
[1693621779037,7.38254783,1633.2,1633.1,0.0612]
[1693621779240,5.08547783,1633.2,1633.1,14.28609692]
[1693621784538,4.59403,1633.2,1633.1,14.28609692]
[1693621785345,2.0847069,1633.4,1633.2,0.0612]
[1693621785544,0.48125091,1633.4,1633.3,7.39473692]
[1693621785744,1.60345599,1633.6,1633.3,12.49973692]
[1693621785938,3.43156795,1633.7,1633.5,5.529]
[1693621786138,6.23172195,1633.7,1633.5,5.529]
[1693621787242,6.72546255,1633.7,1633.5,5.529]
[1693621789543,6.72546255,1633.7,1633.5,7.9575]
[1693621791851,6.72546255,1633.7,1633.6,5.529]
[1693621792849,4.21756255,1633.7,1633.6,8.39616352]
[1693621793851,6.92910065,1633.7,1633.6,8.39616352]
[1693621794951,6.92910065,1633.7,1633.6,5.529]
[1693621795451,6.62274654,1633.7,1633.6,8.39616352]
[1693621796152,6.62274654,1633.7,1633.6,5.529]
[1693621797955,6.62274654,1633.7,1633.6,2.86716352]
[1693621798254,6.62274654,1633.7,1633.5,7.9575]
[1693621798450,1.60458916,1633.6,1633.5,7.9575]
[1693621799162,1.60458916,1633.6,1633.5,10.82466352]
[1693621801056,4.21756255,1633.7,1633.5,10.82466352]
[1693621801953,0.4937406,1633.7,1633.5,10.88586352]
[1693621802162,6.457613,1633.8,1633.5,10.88586352]
[1693621802359,0.928613,1633.8,1633.6,7.39473692]
[1693621802564,7.9216,1633.9,1633.7,2.92836352]
[1693621802766,7.9216,1633.9,1633.7,5.46136352]
[1693621802767,8.42277328,1633.9,1633.7,5.46136352]
[1693621802958,8.42277328,1633.9,1633.8,1.80453692]
[1693621803365,6.03017328,1633.9,1633.8,1.80453692]
[1693621803562,8.40179402,1633.9,1633.8,1.80453692]
[1693621804767,8.40179402,1633.9,1633.6,0.0612]
[1693621804967,2.26993648,1633.8,1633.6,0.0612]
[1693621805167,2.26993648,1633.8,1633.6,2.6409]
[1693621805368,1.45388547,1633.7,1633.5,5.529]
[1693621805569,2.26993648,1633.6,1633.3,5.529]
[1693621806169,1.45388547,1633.5,1633.3,5.529]
[1693621806363,1.45388547,1633.5,1633.3,8.39616352]
[1693621810465,1.45388547,1633.5,1633.4,2.4103]
[1693621810969,3.72382195,1633.5,1633.4,2.4103]
[1693621814068,1.60458916,1633.6,1633.4,4.27603692]
[1693621814268,1.45388547,1633.5,1633.4,4.27603692]
[1693621814872,1.60458916,1633.6,1633.4,4.27603692]
[1693621815180,3.05847463,1633.6,1633.4,4.27603692]
[1693621815471,6.88971,1633.5,1633.4,4.27603692]
[1693621817177,9.18628,1633.5,1633.4,4.27603692]
[1693621817471,9.18628,1633.5,1633.4,2.4715]
[1693621818979,11.45621648,1633.5,1633.4,2.4715]
[1693621826976,6.88971,1633.5,1633.4,2.4715]
[1693621828482,6.88971,1633.5,1633.4,5.091]
[1693621828976,10.64016547,1633.5,1633.4,5.091]
[1693621829476,9.18628,1633.5,1633.4,5.091]
[1693621829678,10.64016547,1633.5,1633.4,5.091]
[1693621830571,9.18628,1633.5,1633.4,5.091]
[1693621831981,9.18628,1633.5,1633.4,10.62]
[1693621833484,10.64016547,1633.5,1633.4,10.62]
[1693621833683,9.18628,1633.5,1633.4,10.62]
[1693621833877,6.88971,1633.5,1633.4,10.62]
[1693621835279,9.18628,1633.5,1633.4,10.62]
[1693621843686,10.64016547,1633.5,1633.4,10.62]
[1693621843886,9.18628,1633.5,1633.4,10.62]
[1693621846995,10.64016547,1633.5,1633.4,10.62]
[1693621847501,9.18628,1633.5,1633.4,10.62]
[1693621847697,10.64016547,1633.5,1633.4,10.62]
[1693621851699,9.18628,1633.5,1633.4,10.62]
[1693621852093,10.64016547,1633.5,1633.4,10.62]
[1693621853700,9.18628,1633.5,1633.4,10.62]
[1693621854194,10.64016547,1633.5,1633.4,10.62]
[1693621854494,9.18628,1633.5,1633.4,10.62]
[1693621855298,10.64016547,1633.5,1633.4,10.62]
[1693621855698,9.18628,1633.5,1633.4,10.62]
[1693621856294,10.64016547,1633.5,1633.4,7.9393]
[1693621856498,10.64016547,1633.5,1633.4,2.4103]
[1693621862814,16.16916547,1633.5,1633.2,10.4104]
[1693621863111,6.89043,1633.3,1633.2,5.5902]
[1693621863513,8.34431547,1633.3,1633.2,7.88716]
[1693621864109,8.34431547,1633.3,1633.2,10.18414]
[1693621865213,6.04750547,1633.3,1633.2,10.18414]
[1693621866309,6.04750547,1633.3,1633.2,13.05130352]
[1693621866911,6.04750547,1633.3,1633.2,10.18414]
[1693621869217,6.04750547,1633.3,1633.2,12.48112]
[1693621871116,3.75069547,1633.3,1633.2,12.48112]
[1693621871319,6.04751547,1633.3,1633.2,12.48112]
[1693621871915,6.04751547,1633.3,1633.2,6.95212]
[1693621872622,6.04751547,1633.3,1633.2,9.81928352]
[1693621872824,6.04751547,1633.3,1633.2,6.95212]
[1693621874721,6.04751547,1633.3,1633.2,9.81928352]
[1693621875024,6.04751547,1633.3,1633.2,6.95212]
[1693621876819,6.04751547,1633.3,1633.2,9.81928352]
[1693621877020,6.04751547,1633.3,1633.2,6.95212]
[1693621878124,6.04751547,1633.3,1633.2,6.95213]
[1693621878425,6.52900965,1633.3,1633.2,6.95213]
[1693621878927,6.52900965,1633.3,1633.2,9.81929352]
[1693621880425,6.52900965,1633.3,1633.2,6.95213]
[1693621887430,6.52900965,1633.3,1633.2,9.81929352]
[1693621887935,6.52900965,1633.3,1633.2,6.95213]
[1693621888331,6.52900965,1633.3,1633.2,4.65514]
[1693621888531,16.65166965,1633.3,1633.0,0.0612]
[1693621888837,5.529,1633.1,1633.0,0.0612]
[1693621889035,15.08367169,1633.1,1633.0,0.0612]
[1693621889334,16.53755716,1633.1,1633.0,0.0612]
[1693621891936,11.00855716,1633.1,1633.0,0.0612]
[1693621894939,11.00855716,1633.1,1632.9,0.49055423]
[1693621895139,2.26993648,1633.0,1632.8,7.9957]
[1693621895438,8.34596547,1632.9,1632.8,7.9957]
[1693621895638,8.34596547,1632.9,1632.8,10.2932]
[1693621896136,8.34596547,1632.9,1632.8,13.16036352]
[1693621896333,8.34596547,1632.9,1632.8,7.63136352]
[1693621896637,8.34596547,1632.9,1632.8,2.4667]
[1693621897935,8.34596547,1632.9,1632.8,2.95642787]
[1693621898637,10.64337547,1632.9,1632.8,2.89522787]
[1693621898939,10.64337547,1632.9,1632.8,0.48972787]
[1693621899234,10.64337547,1632.9,1632.7,14.97549]
[1693621900141,2.26993648,1632.8,1632.7,14.97549]
[1693621900340,6.86497648,1632.8,1632.7,14.97549]
[1693621901139,9.16250648,1632.8,1632.7,15.47346128]
[1693621903338,9.16250648,1632.8,1632.7,18.3406248]
[1693621904434,6.89257,1632.8,1632.7,18.3406248]
[1693621904738,4.59504,1632.8,1632.7,18.3406248]
[1693621906142,4.59504,1632.8,1632.7,15.47346128]
[1693621906841,4.59504,1632.8,1632.7,18.3406248]
[1693621907244,4.59504,1632.8,1632.7,15.47346128]
[1693621907843,4.59504,1632.8,1632.7,18.3406248]
[1693621908239,4.59504,1632.8,1632.7,15.47346128]
[1693621909145,6.89257,1632.8,1632.7,15.47346128]
[1693621909846,6.89257,1632.8,1632.7,18.3406248]
[1693621910144,6.89257,1632.8,1632.7,16.0429748]
[1693621910346,6.89257,1632.8,1632.7,13.17581128]
[1693621911044,6.89257,1632.8,1632.7,16.0429748]
[1693621911546,6.89257,1632.8,1632.7,13.17581128]
[1693621912044,6.89257,1632.8,1632.7,16.0429748]
[1693621912745,6.89257,1632.8,1632.7,13.17581128]
[1693621913143,6.89257,1632.8,1632.7,16.0429748]
[1693621913649,6.89257,1632.8,1632.7,13.17581128]
[1693621915241,6.89257,1632.8,1632.7,16.0429748]
[1693621915848,6.89257,1632.8,1632.7,13.17581128]
[1693621916344,6.89257,1632.8,1632.7,16.0429748]
[1693621917045,6.89257,1632.8,1632.7,13.17581128]
[1693621918344,6.89257,1632.8,1632.7,16.0429748]
[1693621918545,6.89257,1632.8,1632.7,10.5139748]
[1693621919945,6.89257,1632.8,1632.7,7.64681128]
[1693621921645,6.89257,1632.8,1632.7,10.5139748]
[1693621922045,6.89257,1632.8,1632.7,7.64681128]
[1693621922545,6.89257,1632.8,1632.7,10.5139748]